fUST/lending_fUST_20250713
["ID","MTS","AMOUNT","RATE_DAILY","PERIOD"]
[371688796,1752388232875,-460.0,0.000166,2]
[371688798,1752388232884,-460.0,0.000166,2]
[371688800,1752388232894,-460.0,0.000166,2]
[371688802,1752388232903,-460.0,0.000166,2]
[371688804,1752388232911,-460.0,0.000166,2]
[371688806,1752388232921,-460.0,0.000166,2]
[371688808,1752388232930,-460.0,0.000166,2]
[371688810,1752388232939,-460.98821901,0.000166,2]
[371688812,1752388232948,-460.0,0.000166,2]
[371688814,1752388232957,-462.14506174,0.000166,2]
[371688816,1752388232967,-460.0,0.000166,2]
[371688818,1752388232977,-220.0,0.000166,2]
[371688820,1752388232987,-460.0,0.000166,2]
[371688822,1752388232997,-460.0,0.000166,2]
[371688824,1752388233006,-460.0,0.000166,2]
[371688826,1752388233016,-312.49577003,0.000166,2]
[371688828,1752388233025,-460.0,0.000166,2]
[371688830,1752388233035,-460.0,0.000166,2]
[371688832,1752388233045,-461.64054771,0.000166,2]
[371688834,1752388233055,-462.36494555,0.000166,2]
[371688836,1752388233065,-460.0,0.000166,2]
[371688838,1752388233074,-461.22862324,0.000166,2]
[371688840,1752388233085,-460.0,0.000166,2]
[371688842,1752388233098,-463.27515092,0.000166,2]
[371688844,1752388233108,-619.76,0.000166,2]
[371688846,1752388233118,-460.0,0.000166,2]
[371688848,1752388233128,-460.0,0.000166,2]
[371688850,1752388233139,-460.0,0.000166,2]
[371688852,1752388233149,-489.43,0.000166,2]
[371688854,1752388233159,-1418.37,0.000166,2]
[371688856,1752388233170,-460.0,0.000166,2]
[371688858,1752388233179,-460.0,0.000166,2]
[371688860,1752388233189,-460.0,0.000166,2]
[371688863,1752388233199,-460.0,0.000166,2]
[371688864,1752388233208,-460.0,0.000166,2]
[371688866,1752388233217,-460.0,0.000166,2]
[371688869,1752388233227,-520.78,0.000166,2]
[371688871,1752388233236,-460.0,0.000166,2]
[371688873,1752388233246,-878.38,0.000166,2]
[371688875,1752388233255,-878.38,0.000166,2]
[371688877,1752388233265,-460.0,0.000166,2]
[371688879,1752388233275,-838.66,0.000166,2]
[371688881,1752388233284,-460.0,0.000166,2]
[371688883,1752388233293,-460.5,0.000166,2]
[371688885,1752388233303,-2789.97,0.000166,2]
[371688887,1752388233313,-460.0,0.000166,2]
[371688889,1752388233323,-667.51,0.000166,2]
[371688891,1752388233333,-414.16457757,0.000166,2]
[371688893,1752388233343,-289.79,0.000166,2]
[371688895,1752388233353,-460.0,0.000166,2]
[371688897,1752388233363,-460.0,0.000166,2]
[371688899,1752388233373,-460.0,0.000166,2]
[371688901,1752388233383,-2287.96,0.000166,2]
[371688903,1752388233393,-649.42,0.000166,2]
[371688905,1752388233403,-460.0,0.000166,2]
[371688907,1752388233412,-460.0,0.000166,2]
[371688909,1752388233422,-831.06,0.000166,2]
[371688911,1752388233432,-460.0,0.000166,2]
[371688913,1752388233441,-460.0,0.00016601,2]
[371688915,1752388233451,-462.86709415,0.00016601,2]
[371688917,1752388233460,-463.86449508,0.00016601,2]
[371688919,1752388233471,-464.3061091,0.00016601,2]
[371688921,1752388233481,-461.83076136,0.00016601,2]
[371688923,1752388233491,-460.0,0.00016601,2]
[371688925,1752388233500,-460.0,0.00016601,2]
[371688927,1752388233510,-460.0,0.00016601,2]
[371688929,1752388233520,-407.60339752,0.00016601,2]
[371688931,1752388233530,-461.31717913,0.00016601,2]
[371688933,1752388233540,-460.0,0.00016601,2]
[371688935,1752388233550,-460.0,0.00016601,2]
[371688937,1752388233560,-349.21344755,0.00016601,2]
[371688939,1752388233570,-547.99645538,0.00016601,2]
[371688941,1752388233581,-602.83262648,0.00016601,2]
[371688943,1752388233591,-344.41009111,0.00016601,2]
[371688945,1752388233601,-460.0,0.00016601,2]
[371688947,1752388233611,-500.0,0.00016601,2]
[371688949,1752388233622,-500.0,0.00016601,2]
[371688951,1752388233632,-460.0,0.00016601,2]
[371688953,1752388233643,-460.0,0.00016601,2]
[371688955,1752388233653,-460.0,0.00016601,2]
[371688957,1752388233663,-460.0,0.00016601,2]
[371688959,1752388233673,-463.85438531,0.00016601,2]
[371688961,1752388233683,-460.0,0.00016601,2]
[371688963,1752388233693,-296.12429674,0.00016601,2]
[371688965,1752388233702,-460.0,0.00016601,2]
[371688967,1752388233713,-555.42284444,0.00016601,2]
[371688969,1752388233723,-334.15937102,0.00016601,2]
[371688971,1752388233732,-449.2866887,0.00016601,2]
[371688973,1752388233742,-472.57671558,0.00016601,2]
[371688976,1752388233752,-460.0,0.00016601,2]
[371688978,1752388233761,-460.0,0.00016601,2]
[371688980,1752388233771,-460.0,0.00016601,2]
[371688982,1752388233780,-426.94456967,0.00016601,2]
[371688984,1752388233789,-446.71181951,0.00016601,2]
[371688986,1752388233799,-460.0,0.00016601,2]
[371688988,1752388233810,-460.0,0.00016601,2]
[371688990,1752388233819,-500.0,0.00016601,2]
[371688992,1752388233829,-500.0,0.00016601,2]
[371688993,1752388233846,-500.0,0.00016601,2]
[371688995,1752388233859,-460.0,0.00016601,2]
[371688998,1752388233879,-460.0,0.00016601,2]
[371689000,1752388233888,-460.0,0.00016601,2]
[371689002,1752388233898,-460.0,0.00016601,2]
[371689004,1752388233907,-460.0,0.00016601,2]
[371689005,1752388233917,-460.0,0.00016601,2]
[371689007,1752388233927,-460.0,0.00016601,2]
[371689010,1752388233937,-460.0,0.00016601,2]
[371689012,1752388233947,-460.0,0.00016601,2]
[371689014,1752388233956,-460.0,0.00016601,2]
[371689016,1752388233965,-460.0,0.00016601,2]
[371689018,1752388233975,-460.0,0.00016601,2]
[371689020,1752388233986,-382.65225744,0.00016601,2]
[371689022,1752388233996,-460.0,0.00016601,2]
[371689024,1752388234005,-460.0,0.00016601,2]
[371689026,1752388234015,-460.0,0.00016601,2]
[371689028,1752388234025,-460.0,0.00016601,2]
[371689030,1752388234035,-460.0,0.00016601,2]
[371689032,1752388234046,-460.0,0.00016601,2]
[371689034,1752388234057,-460.0,0.00016601,2]
[371689036,1752388234066,-460.0,0.00016601,2]
[371689038,1752388234076,-460.0,0.00016601,2]
[371689040,1752388234088,-460.0,0.00016601,2]
[371689042,1752388234099,-468.49643586,0.00016601,2]
[371689044,1752388234110,-460.0,0.00016601,2]
[371689046,1752388234119,-460.0,0.00016601,2]
[371689048,1752388234129,-460.0,0.00016601,2]
[371689050,1752388234139,-460.0,0.00016601,2]
[371689052,1752388234149,-460.0,0.00016601,2]
[371689054,1752388234158,-460.0,0.00016601,2]
[371689056,1752388234167,-460.0,0.00016601,2]
[371689058,1752388234177,-460.0,0.00016601,2]
[371689060,1752388234187,-460.0,0.00016601,2]
[371689062,1752388234196,-460.0,0.00016601,2]
[371689064,1752388234206,-475.64565832,0.00016601,2]
[371689066,1752388234216,-460.0,0.00016601,2]
[371689068,1752388234226,-460.0,0.00016601,2]
[371689070,1752388234236,-415.29628757,0.00016601,2]
[371689072,1752388234245,-460.0,0.00016601,2]
[371689074,1752388234255,-460.0,0.00016601,2]
[371689076,1752388234265,-878.38,0.00016601,2]
[371689078,1752388234274,-878.38,0.00016601,2]
[371689080,1752388234284,-460.0,0.00016601,2]
[371689082,1752388234293,-460.0,0.00016601,2]
[371689084,1752388234302,-545.57343291,0.00016601,2]
[371689086,1752388234313,-460.0,0.00016601,2]
[371689088,1752388234323,-558.79,0.00016601,2]
[371689091,1752388234333,-460.0,0.00016601,2]
[371689093,1752388234342,-460.0,0.00016601,2]
[371689095,1752388234351,-464.07940369,0.00016601,2]
[371689097,1752388234361,-460.0,0.00016601,2]
[371689098,1752388234371,-469.68,0.00016601,2]
[371689100,1752388234380,-460.0,0.00016601,2]
[371689102,1752388234389,-826.81,0.00016601,2]
[371689104,1752388234399,-460.0,0.00016601,2]
[371689107,1752388234409,-460.0,0.00016601,2]
[371689108,1752388234419,-460.0,0.00016601,2]
[371689111,1752388234428,-460.0,0.00016601,2]
[371689113,1752388234438,-763.51,0.00016601,2]
[371689115,1752388234448,-460.0,0.00016601,2]
[371689117,1752388234458,-460.0,0.00016601,2]
[371689118,1752388234467,-460.0,0.00016601,2]
[371689120,1752388234477,-460.0,0.00016601,2]
[371689121,1752388234487,-460.0,0.00016601,2]
[371689122,1752388234498,-460.0,0.00016601,2]
[371689123,1752388234508,-461.1236988,0.00016601,2]
[371689124,1752388234518,-460.0,0.00016602,2]
[371689125,1752388234527,-460.0,0.00016602,2]
[371689126,1752388234537,-412.59613661,0.00016602,2]
[371689127,1752388234546,-464.03925104,0.00016602,2]
[371689128,1752388234556,-460.0,0.00016602,2]
[371689129,1752388234566,-464.81383491,0.00016602,2]
[371689130,1752388234576,-505.88,0.00016602,2]
[371689131,1752388234585,-460.0,0.00016602,2]
[371689132,1752388234594,-460.0,0.00016602,2]
[371689133,1752388234604,-468.50037143,0.00016602,2]
[371689134,1752388234614,-460.0,0.00016602,2]
[371689135,1752388234624,-460.0,0.00016602,2]
[371689136,1752388234634,-460.0,0.00016602,2]
[371689137,1752388234644,-460.0,0.00016602,2]
[371689138,1752388234653,-460.0,0.00016602,2]
[371689139,1752388234663,-460.0,0.00016602,2]
[371689140,1752388234672,-460.0,0.00016603,2]
[371689141,1752388234682,-462.5552621,0.00016603,2]
[371689142,1752388234691,-463.48982438,0.00016603,2]
[371689143,1752388234700,-460.0,0.00016603,2]
[371689144,1752388234710,-466.57725566,0.00016603,2]
[371689145,1752388234720,-461.99224792,0.00016603,2]
[371689146,1752388234729,-500.0,0.00016603,2]
[371689147,1752388234739,-878.38,0.00016603,2]
[371689148,1752388234749,-500.0,0.00016603,2]
[371689149,1752388234760,-460.0,0.00016604,2]
[371689150,1752388234769,-460.0,0.00016604,2]
[371689151,1752388234779,-500.0,0.00016673,2]
[371689152,1752388234789,-502.26469768,0.00016673,2]
[371689153,1752388234798,-500.0,0.00016673,2]
[371689154,1752388234808,-501.07959564,0.00016673,2]
[371689155,1752388234818,-545.21,0.00016864,3]
[371689156,1752388234828,-272.61,0.00016864,3]
[371689157,1752388234837,-502.09432008,0.00016873,2]
[371689158,1752388234847,-500.0,0.00016873,2]
[371689159,1752388234856,-500.0,0.00016873,2]
[371689160,1752388234991,-504.52302474,0.00016873,2]
[371689161,1752388235001,-503.4940126,0.00016873,2]
[371689162,1752388235011,-615.09663534,0.00016873,2]
[371689163,1752388235021,-500.0,0.00016873,2]
[371689164,1752388235030,-500.0,0.00016873,2]
[371689165,1752388235041,-492.91332733,0.00016873,2]
[371689166,1752388235051,-500.0,0.00016873,2]
[371689167,1752388235061,-502.47566828,0.00016873,2]
[371689168,1752388235071,-460.0,0.00016873,2]
[371689169,1752388235081,-460.0,0.00016873,2]
[371689170,1752388235095,-460.0,0.00016873,2]
[371689171,1752388235104,-460.0,0.00016873,2]
[371689172,1752388235114,-460.0,0.00016873,2]
[371689173,1752388235124,-460.0,0.00016873,2]
[371689174,1752388235137,-460.0,0.00016873,2]
[371689175,1752388235147,-809.52,0.00016873,2]
[371689176,1752388235156,-2471.46,0.00016873,2]
[371689177,1752388235167,-460.0,0.00016873,2]
[371689178,1752388235176,-460.0,0.00016873,2]
[371689179,1752388235186,-460.0,0.00016873,2]
[371689180,1752388235196,-871.59,0.00016873,2]
[371689181,1752388235206,-460.0,0.00016873,2]
[371689182,1752388235217,-1436.67,0.00016873,2]
[371689183,1752388235228,-460.0,0.00016873,2]
[371689184,1752388235237,-460.0,0.00016873,2]
[371689185,1752388235247,-460.0,0.00016873,2]
[371689186,1752388235256,-941.99,0.00016873,2]
[371689187,1752388235265,-795.45,0.00016873,2]
[371689188,1752388235276,-460.0,0.00016873,2]
[371689189,1752388235285,-460.0,0.00016873,2]
[371689190,1752388235295,-460.0,0.00016874,2]
[371689191,1752388235304,-460.0,0.00016874,2]
[371689192,1752388235315,-460.0,0.00016874,2]
[371689193,1752388235325,-460.0,0.00016874,2]
[371689194,1752388235334,-460.0,0.00016874,2]
[371689195,1752388235344,-500.0,0.00016874,2]
[371689196,1752388235355,-460.0,0.00016874,2]
[371689197,1752388235365,-460.0,0.00016874,2]
[371689198,1752388235375,-460.0,0.00016874,2]
[371689199,1752388235384,-460.0,0.00016874,2]
[371689200,1752388235394,-460.0,0.00016874,2]
[371689201,1752388235403,-460.0,0.00016874,2]
[371689202,1752388235412,-460.0,0.00016874,2]
[371689203,1752388235422,-460.0,0.00016874,2]
[371689204,1752388235431,-619.76,0.00016874,2]
[371689205,1752388235441,-460.0,0.00016874,2]
[371689206,1752388235451,-460.0,0.00016874,2]
[371689207,1752388235461,-489.43,0.00016874,2]
[371689208,1752388235471,-1418.37,0.00016874,2]
[371689209,1752388235480,-460.0,0.00016874,2]
[371689210,1752388235489,-460.0,0.00016874,2]
[371689211,1752388235499,-460.0,0.00016874,2]
[371689212,1752388235508,-460.0,0.00016874,2]
[371689213,1752388235518,-460.0,0.00016874,2]
[371689214,1752388235529,-460.0,0.00016874,2]
[371689215,1752388235538,-878.38,0.00016874,2]
[371689216,1752388235548,-878.38,0.00016874,2]
[371689217,1752388235558,-460.0,0.00016874,2]
[371689218,1752388235569,-838.66,0.00016874,2]
[371689219,1752388235579,-460.0,0.00016874,2]
[371689220,1752388235588,-460.5,0.00016874,2]
[371689221,1752388235599,-2789.97,0.00016874,2]
[371689222,1752388235608,-460.0,0.00016874,2]
[371689223,1752388235621,-667.51,0.00016874,2]
[371689224,1752388235630,-454.9027757,0.00016874,2]
[371689225,1752388235640,-460.0,0.00016874,2]
[371689226,1752388235650,-2287.96,0.00016874,2]
[371689227,1752388235659,-649.42,0.00016874,2]
[371689228,1752388235669,-460.0,0.00016874,2]
[371689229,1752388235678,-460.0,0.00016874,2]
[371689230,1752388235688,-831.06,0.00016874,2]
[371689231,1752388235697,-460.0,0.00016874,2]
[371689232,1752388235707,-273.61043559,0.00016874,2]
[371689233,1752388235716,-500.0,0.00016874,2]
[371689234,1752388235725,-555.47511707,0.00016874,2]
[371689235,1752388235735,-460.0,0.00016875,2]
[371689236,1752388235744,-460.0,0.00016875,2]
[371689237,1752388235754,-460.0,0.00016875,2]
[371689238,1752388235763,-460.0,0.00016875,2]
[371689239,1752388235772,-258.51295092,0.00016875,2]
[371689240,1752388235782,-460.0,0.00016875,2]
[371689241,1752388235791,-460.0,0.00016875,2]
[371689242,1752388235801,-460.0,0.00016875,2]
[371689243,1752388235811,-597.62802116,0.00016875,2]
[371689244,1752388235821,-460.0,0.00016875,2]
[371689245,1752388235830,-460.0,0.00016875,2]
[371689246,1752388235840,-460.0,0.00016875,2]
[371689247,1752388235849,-460.0,0.00016875,2]
[371689248,1752388235858,-460.0,0.00016875,2]
[371689249,1752388235868,-500.0,0.00016875,2]
[371689250,1752388235877,-500.0,0.00016875,2]
[371689251,1752388235886,-460.0,0.00016875,2]
[371689252,1752388235896,-460.0,0.00016875,2]
[371689253,1752388235905,-460.0,0.00016875,2]
[371689254,1752388235915,-460.0,0.00016875,2]
[371689255,1752388235924,-460.0,0.00016875,2]
[371689256,1752388235933,-460.0,0.00016875,2]
[371689257,1752388235942,-460.0,0.00016875,2]
[371689258,1752388235952,-460.0,0.00016875,2]
[371689259,1752388235961,-460.0,0.00016875,2]
[371689260,1752388235970,-460.0,0.00016875,2]
[371689261,1752388235980,-460.0,0.00016875,2]
[371689262,1752388235989,-460.0,0.00016875,2]
[371689263,1752388235998,-460.0,0.00016875,2]
[371689264,1752388236008,-432.12,0.00016875,2]
[371689265,1752388236017,-460.0,0.00016875,2]
[371689266,1752388236027,-460.0,0.00016875,2]
[371689267,1752388236037,-460.0,0.00016875,2]
[371689268,1752388236046,-460.0,0.00016875,2]
[371689269,1752388236056,-460.0,0.00016875,2]
[371689270,1752388236066,-460.0,0.00016875,2]
[371689271,1752388236076,-460.0,0.00016875,2]
[371689272,1752388236085,-460.0,0.00016875,2]
[371689273,1752388236099,-460.0,0.00016875,2]
[371689274,1752388236109,-460.0,0.00016875,2]
[371689275,1752388236118,-460.0,0.00016875,2]
[371689276,1752388236127,-380.00117322,0.00016875,2]
[371689277,1752388236137,-460.0,0.00016875,2]
[371689278,1752388236148,-460.0,0.00016875,2]
[371689279,1752388236158,-878.38,0.00016875,2]
[371689280,1752388236168,-195.76260256,0.00016875,2]
[371689281,1752388236179,-460.0,0.00016875,2]
[371689282,1752388236189,-558.79,0.00016875,2]
[371689283,1752388236199,-460.0,0.00016875,2]
[371689284,1752388236210,-460.0,0.00016875,2]
[371689285,1752388236219,-460.0,0.00016875,2]
[371689286,1752388236230,-469.68,0.00016875,2]
[371689287,1752388236241,-826.81,0.00016875,2]
[371689288,1752388236252,-460.0,0.00016875,2]
[371689289,1752388236263,-460.0,0.00016875,2]
[371689290,1752388236272,-763.51,0.00016875,2]
[371689291,1752388236282,-460.0,0.00016875,2]
[371689292,1752388236291,-460.0,0.00016875,2]
[371689293,1752388236300,-340.94,0.00016875,2]
[371689294,1752388236311,-335.27262148,0.00016875,2]
[371689295,1752388236320,-460.0,0.00016875,2]
[371689296,1752388236331,-460.0,0.00016875,2]
[371689297,1752388236342,-460.0,0.00016876,2]
[371689298,1752388236353,-460.0,0.00016876,2]
[371689299,1752388236364,-460.0,0.00016876,2]
[371689300,1752388236376,-460.0,0.00016876,2]
[371689301,1752388236386,-389.02182787,0.00016876,2]
[371689302,1752388236396,-467.97520851,0.00016876,2]
[371689303,1752388236407,-460.0,0.00016876,2]
[371689304,1752388236418,-349.13235178,0.00016876,2]
[371689305,1752388236427,-460.0,0.00016877,2]
[371689306,1752388236437,-460.0,0.00016877,2]
[371689307,1752388236447,-460.0,0.00016878,2]
[371689308,1752388236458,-460.0,0.00016878,2]
[371689309,1752388236467,-1343.92098801,0.00017048,2]
[371689310,1752388236477,-878.38,0.00017099,2]
[371689311,1752388236486,-460.0,0.00017147,2]
[371689312,1752388236497,-411.8078171,0.00017147,2]
[371689313,1752388236506,-471.46,0.00017147,2]
[371689314,1752388236516,-460.0,0.00017147,2]
[371689315,1752388236526,-460.0,0.00017147,2]
[371689316,1752388236537,-460.0,0.00017147,2]
[371689317,1752388236547,-809.52,0.00017147,2]
[371689318,1752388236558,-2471.46,0.00017147,2]
[371689319,1752388236567,-463.910739,0.00017147,2]
[371689320,1752388236577,-460.0,0.00017147,2]
[371689321,1752388236587,-460.0,0.00017147,2]
[371689322,1752388236598,-871.59,0.00017147,2]
[371689323,1752388236608,-462.53014485,0.00017147,2]
[371689324,1752388236618,-1436.67,0.00017147,2]
[371689325,1752388236628,-460.0,0.00017147,2]
[371689326,1752388236639,-460.0,0.00017147,2]
[371689327,1752388236648,-460.0,0.00017147,2]
[371689328,1752388236658,-941.99,0.00017147,2]
[371689329,1752388236668,-795.45,0.00017147,2]
[371689330,1752388236678,-460.0,0.00017147,2]
[371689331,1752388236688,-460.0,0.00017147,2]
[371689332,1752388236698,-460.0,0.00017148,2]
[371689333,1752388236707,-464.57138435,0.00017148,2]
[371689334,1752388236717,-460.0,0.00017148,2]
[371689335,1752388236726,-333.68264989,0.00017148,2]
[371689336,1752388236736,-500.0,0.00017148,2]
[371689337,1752388236745,-460.0,0.00017148,2]
[371689338,1752388236755,-537.46691779,0.00017148,2]
[371689339,1752388236764,-460.0,0.00017148,2]
[371689340,1752388236773,-460.0,0.00017148,2]
[371689341,1752388236783,-460.0,0.00017148,2]
[371689342,1752388236792,-460.0,0.00017148,2]
[371689343,1752388236801,-460.0,0.00017148,2]
[371689344,1752388236811,-619.76,0.00017148,2]
[371689345,1752388236821,-460.0,0.00017148,2]
[371689346,1752388236831,-460.0,0.00017148,2]
[371689347,1752388236841,-489.43,0.00017148,2]
[371689348,1752388236851,-1418.37,0.00017148,2]
[371689349,1752388236863,-460.0,0.00017148,2]
[371689350,1752388236873,-460.0,0.00017148,2]
[371689351,1752388236883,-460.0,0.00017148,2]
[371689352,1752388236893,-460.0,0.00017148,2]
[371689353,1752388236903,-460.0,0.00017148,2]
[371689354,1752388236914,-460.0,0.00017148,2]
[371689355,1752388236925,-878.38,0.00017148,2]
[371689356,1752388236935,-878.38,0.00017148,2]
[371689357,1752388236944,-460.0,0.00017148,2]
[371689358,1752388236954,-838.66,0.00017148,2]
[371689359,1752388236963,-460.0,0.00017148,2]
[371689360,1752388236973,-460.5,0.00017148,2]
[371689361,1752388236983,-2789.97,0.00017148,2]
[371689362,1752388236992,-460.0,0.00017148,2]
[371689363,1752388237002,-667.51,0.00017148,2]
[371689364,1752388237011,-460.0,0.00017148,2]
[371689365,1752388237020,-2287.96,0.00017148,2]
[371689366,1752388237030,-649.42,0.00017148,2]
[371689367,1752388237040,-460.0,0.00017148,2]
[371689368,1752388237050,-460.0,0.00017148,2]
[371689369,1752388237061,-460.0,0.00017148,2]
[371689370,1752388237071,-831.06,0.00017148,2]
[371689371,1752388237081,-509.047582,0.00017149,2]
[371689372,1752388237092,-460.0,0.00017149,2]
[371689373,1752388237102,-172.3968326,0.00017149,2]
[371689374,1752388237111,-460.0,0.00017149,2]
[371689375,1752388237120,-460.0,0.00017149,2]
[371689376,1752388237131,-460.0,0.00017149,2]
[371689377,1752388237140,-460.0,0.00017149,2]
[371689378,1752388237149,-460.0,0.00017149,2]
[371689379,1752388237159,-500.0,0.00017149,2]
[371689380,1752388237168,-460.0,0.00017149,2]
[371689381,1752388237178,-460.0,0.00017149,2]
[371689382,1752388237186,-363.22627363,0.00017149,2]
[371689383,1752388237196,-460.0,0.00017149,2]
[371689384,1752388237205,-490.4494931,0.00017149,2]
[371689385,1752388237214,-460.0,0.00017149,2]
[371689386,1752388237224,-460.0,0.00017149,2]
[371689387,1752388237234,-460.0,0.00017149,2]
[371689388,1752388237243,-460.0,0.00017149,2]
[371689389,1752388237253,-320.0,0.00017149,2]
[371689390,1752388237263,-460.0,0.00017149,2]
[371689391,1752388237272,-460.0,0.00017149,2]
[371689392,1752388237282,-460.0,0.00017149,2]
[371689393,1752388237292,-460.0,0.00017149,2]
[371689394,1752388237301,-460.0,0.00017149,2]
[371689395,1752388237311,-460.0,0.00017149,2]
[371689396,1752388237321,-460.0,0.00017149,2]
[371689397,1752388237330,-460.0,0.00017149,2]
[371689398,1752388237340,-460.0,0.00017149,2]
[371689399,1752388237349,-460.0,0.00017149,2]
[371689400,1752388237359,-460.0,0.00017149,2]
[371689401,1752388237369,-460.0,0.00017149,2]
[371689402,1752388237378,-460.0,0.00017149,2]
[371689403,1752388237387,-460.0,0.00017149,2]
[371689404,1752388237396,-878.38,0.00017149,2]
[371689405,1752388237406,-460.0,0.00017149,2]
[371689406,1752388237415,-558.79,0.00017149,2]
[371689407,1752388237424,-460.0,0.00017149,2]
[371689408,1752388237434,-460.0,0.00017149,2]
[371689409,1752388237443,-470.97988062,0.00017149,2]
[371689410,1752388237453,-469.68,0.00017149,2]
[371689411,1752388237462,-826.81,0.00017149,2]
[371689412,1752388237472,-460.0,0.00017149,2]
[371689413,1752388237481,-220.50658624,0.00017149,2]
[371689414,1752388237491,-763.51,0.00017149,2]
[371689415,1752388237500,-460.0,0.00017149,2]
[371689416,1752388237510,-274.84014262,0.00017149,2]
[371689417,1752388237519,-460.0,0.00017149,2]
[371689418,1752388237529,-460.0,0.0001715,2]
[371689419,1752388237539,-460.0,0.0001715,2]
[371689420,1752388237548,-460.0,0.0001715,2]
[371689421,1752388237559,-500.0,0.0001715,2]
[371689422,1752388237569,-408.69964864,0.00017151,2]
[371689423,1752388237579,-460.0,0.00017151,2]
[371689424,1752388237589,-460.0,0.00017152,2]
[371689425,1752388237599,-238.558168,0.00017161,2]
[371689426,1752388237609,-878.38,0.0001722,2]
[371689427,1752388237618,-501.50161883,0.00017221,2]
[371689428,1752388237627,-500.0,0.00017221,2]
[371689429,1752388237637,-504.43196275,0.00017235,2]
[371689430,1752388237647,-238.558168,0.00017243,2]
[371689431,1752388237657,-501.31815606,0.00017263,2]
[371689432,1752388237666,-500.0,0.00017263,2]
[371689433,1752388237676,-513.28820348,0.00017263,2]
[371689435,1752388237686,-500.0,0.00017263,2]
[371689437,1752388237695,-189.06793322,0.00017263,2]
[371689438,1752388237704,-500.0,0.00017263,2]
[371689439,1752388237713,-500.0,0.00017263,2]
[371689440,1752388237723,-503.3205162,0.00017263,2]
[371689441,1752388237732,-151.0,0.00017319,2]
[371689442,1752388237741,-151.0,0.00017319,2]
[371689443,1752388237751,-500.0,0.00017319,2]
[371689444,1752388237760,-151.0,0.00017319,2]
[371689445,1752388237770,-151.0,0.00017319,2]
[371689446,1752388237779,-151.0,0.00017319,2]
[371689447,1752388237789,-151.0,0.00017319,2]
[371689448,1752388237798,-151.0,0.00017319,2]
[371689449,1752388237808,-151.0,0.00017319,2]
[371689451,1752388237919,-151.0,0.00017319,2]
[371689452,1752388237928,-152.08327846,0.00017319,2]
[371689453,1752388237938,-1147.0,0.00017319,2]
[371689454,1752388237948,-151.0,0.00017319,2]
[371689455,1752388237958,-151.0,0.00017319,2]
[371689456,1752388237967,-151.0,0.00017319,2]
[371689457,1752388237976,-151.0,0.00017319,2]
[371689458,1752388237986,-151.0,0.00017319,2]
[371689459,1752388237996,-167.95191414,0.00017319,2]
[371689460,1752388238005,-199.11940999,0.00017319,2]
[371689461,1752388238014,-238.558168,0.00017325,2]